[Event "Early-Titled-Tuesday-Blitz-October-24-2023"]
[Site "Chess.com"]
[Date "2023.10.24"]
[Round "5"]
[White "Grandmaster1369"]
[Black "vugarrasulov"]
[Result "0-1"]
[WhiteElo "2800"]
[BlackElo "3009"]
[TimeControl "180+1"]
[EndTime "8:55:22 PDT"]
[Termination "vugarrasulov won on time"]

1. e4 {[%clk 0:02:59.7]} 1... e5 {[%clk 0:02:59]} 2. Nc3 {[%clk 0:03:00.1]} 2...
Nf6 {[%clk 0:02:58.8]} 3. Bc4 {[%clk 0:03:00.6]} 3... Nc6 {[%clk 0:02:56.8]} 4.
d3 {[%clk 0:02:59.9]} 4... Bb4 {[%clk 0:02:56.4]} 5. Ne2 {[%clk 0:02:58.5]} 5...
d5 {[%clk 0:02:55.7]} 6. exd5 {[%clk 0:02:59.4]} 6... Nxd5 {[%clk 0:02:56.5]} 7.
O-O {[%clk 0:02:59.9]} 7... Bxc3 {[%clk 0:02:52.9]} 8. Nxc3 {[%clk 0:02:55.1]}
8... Be6 {[%clk 0:02:51.5]} 9. Ne4 {[%clk 0:02:50.5]} 9... O-O {[%clk
0:02:43.2]} 10. Ng5 {[%clk 0:02:41.1]} 10... Bf5 {[%clk 0:02:41.5]} 11. Qf3
{[%clk 0:02:15.5]} 11... Nde7 {[%clk 0:02:39.2]} 12. Be3 {[%clk 0:01:55.8]}
12... Bg6 {[%clk 0:02:33.1]} 13. Rae1 {[%clk 0:01:36.2]} 13... h6 {[%clk
0:02:29.3]} 14. Ne4 {[%clk 0:01:20]} 14... Nf5 {[%clk 0:02:23.9]} 15. Ng3 {[%clk
0:01:12.2]} 15... Nfd4 {[%clk 0:02:19.7]} 16. Qd1 {[%clk 0:01:04.3]} 16... Re8
{[%clk 0:02:16.1]} 17. c3 {[%clk 0:01:02.6]} 17... Ne6 {[%clk 0:02:15.7]} 18. b4
{[%clk 0:00:56]} 18... a6 {[%clk 0:02:07.1]} 19. a4 {[%clk 0:00:55.1]} 19... Qd7
{[%clk 0:01:57.6]} 20. h4 {[%clk 0:00:51.4]} 20... Ne7 {[%clk 0:01:55.2]} 21. h5
{[%clk 0:00:50.3]} 21... Bh7 {[%clk 0:01:54.9]} 22. Qg4 {[%clk 0:00:48]} 22...
Kh8 {[%clk 0:01:42.9]} 23. Rd1 {[%clk 0:00:38.6]} 23... f5 {[%clk 0:01:40.6]}
24. Qh3 {[%clk 0:00:37.8]} 24... b5 {[%clk 0:01:25]} 25. axb5 {[%clk 0:00:35.6]}
25... axb5 {[%clk 0:01:25.9]} 26. Bxe6 {[%clk 0:00:29.7]} 26... Qxe6 {[%clk
0:01:25.6]} 27. Rfe1 {[%clk 0:00:30.3]} 27... Nd5 {[%clk 0:01:15.8]} 28. Bd2
{[%clk 0:00:24.9]} 28... Qf7 {[%clk 0:01:05.5]} 29. Qh4 {[%clk 0:00:19.4]} 29...
Ra2 {[%clk 0:00:58.3]} 30. Nf1 {[%clk 0:00:17.6]} 30... f4 {[%clk 0:00:57.1]}
31. c4 {[%clk 0:00:15.4]} 31... bxc4 {[%clk 0:00:38.1]} 32. dxc4 {[%clk
0:00:16.3]} 32... Nb6 {[%clk 0:00:38.7]} 33. Bxf4 {[%clk 0:00:14.5]} 33... Nxc4
{[%clk 0:00:33.2]} 34. Bg3 {[%clk 0:00:13.3]} 34... Rf8 {[%clk 0:00:32.5]} 35.
Ne3 {[%clk 0:00:11]} 35... Nd6 {[%clk 0:00:31.7]} 36. Nd5 {[%clk 0:00:08.9]}
36... Nf5 {[%clk 0:00:30.5]} 37. Qg4 {[%clk 0:00:09.4]} 37... Nxg3 {[%clk
0:00:30.1]} 38. Qxg3 {[%clk 0:00:10.3]} 38... Qxf2+ {[%clk 0:00:28.6]} 39. Qxf2
{[%clk 0:00:09.3]} 39... Rfxf2 {[%clk 0:00:29.5]} 40. Ne3 {[%clk 0:00:08.3]}
40... Be4 {[%clk 0:00:30]} 41. Rd8+ {[%clk 0:00:08.3]} 41... Kh7 {[%clk
0:00:30.1]} 42. Rd7 {[%clk 0:00:07]} 42... Bxg2 {[%clk 0:00:25]} 43. Ng4 {[%clk
0:00:06.9]} 43... Rf4 {[%clk 0:00:22.7]} 44. Nxe5 {[%clk 0:00:02.9]} 44... Rh4
{[%clk 0:00:22.7]} 0-1

[Event "Early-Titled-Tuesday-Blitz-October-24-2023"]
[Site "Chess.com"]
[Date "2023.10.24"]
[Round "5"]
[White "VOneChess"]
[Black "Slovak_fighter2000"]
[Result "1-0"]
[WhiteElo "2283"]
[BlackElo "2416"]
[TimeControl "180+1"]
[EndTime "8:55:22 PDT"]
[Termination "VOneChess won on time"]

1. e4 {[%clk 0:03:00.9]} 1... c5 {[%clk 0:02:59.3]} 2. Nf3 {[%clk 0:03:01.2]}
2... Nc6 {[%clk 0:02:59.3]} 3. d4 {[%clk 0:03:02.1]} 3... cxd4 {[%clk
0:02:59.8]} 4. Nxd4 {[%clk 0:03:02.8]} 4... g6 {[%clk 0:03:00.4]} 5. Nc3 {[%clk
0:03:02.6]} 5... Bg7 {[%clk 0:03:00.7]} 6. Be3 {[%clk 0:03:03.2]} 6... Nf6
{[%clk 0:03:01.3]} 7. Bc4 {[%clk 0:03:03]} 7... Qa5 {[%clk 0:03:01.8]} 8. O-O
{[%clk 0:03:01.7]} 8... d6 {[%clk 0:03:01.4]} 9. h3 {[%clk 0:02:58.1]} 9... O-O
{[%clk 0:03:01.2]} 10. f4 {[%clk 0:02:57.8]} 10... Bd7 {[%clk 0:03:01.3]} 11.
Bb3 {[%clk 0:02:55.8]} 11... Rac8 {[%clk 0:02:58.5]} 12. Qf3 {[%clk 0:02:55.5]}
12... Nxd4 {[%clk 0:02:57.5]} 13. Bxd4 {[%clk 0:02:56.4]} 13... Bc6 {[%clk
0:02:57.6]} 14. Rad1 {[%clk 0:02:53.8]} 14... b5 {[%clk 0:02:56.2]} 15. a3
{[%clk 0:02:51.2]} 15... b4 {[%clk 0:02:55.2]} 16. axb4 {[%clk 0:02:51.3]} 16...
Qxb4 {[%clk 0:02:56.1]} 17. Qe3 {[%clk 0:02:44.8]} 17... Nd7 {[%clk 0:02:48.8]}
18. Bxg7 {[%clk 0:02:42.2]} 18... Kxg7 {[%clk 0:02:48.5]} 19. e5 {[%clk
0:02:22.2]} 19... dxe5 {[%clk 0:02:31.9]} 20. fxe5 {[%clk 0:02:23.1]} 20... Qc5
{[%clk 0:02:31.8]} 21. Rd4 {[%clk 0:01:58]} 21... Qxe5 {[%clk 0:02:26.3]} 22.
Qd2 {[%clk 0:01:35.9]} 22... Nc5 {[%clk 0:02:22.4]} 23. Rh4 {[%clk 0:01:28.3]}
23... h5 {[%clk 0:02:16.8]} 24. Rhf4 {[%clk 0:01:27.3]} 24... Nxb3 {[%clk
0:02:14]} 25. cxb3 {[%clk 0:01:24.5]} 25... Qe6 {[%clk 0:02:05.4]} 26. Qd4+
{[%clk 0:01:20.5]} 26... f6 {[%clk 0:02:04.4]} 27. Qxa7 {[%clk 0:01:13.2]} 27...
Ra8 {[%clk 0:01:57.9]} 28. Qc5 {[%clk 0:01:06.6]} 28... Rfc8 {[%clk 0:01:44.8]}
29. Qd4 {[%clk 0:00:53.3]} 29... Qxb3 {[%clk 0:01:37.4]} 30. Re1 {[%clk
0:00:20.1]} 30... e5 {[%clk 0:01:30.1]} 31. Qd6 {[%clk 0:00:06.8]} 31... Qf7
{[%clk 0:00:29.3]} 32. Rxe5 {[%clk 0:00:06.9]} 32... Ra7 {[%clk 0:00:18.4]} 33.
Re6 {[%clk 0:00:04.4]} 33... Rd7 {[%clk 0:00:17.1]} 34. Rexf6 {[%clk 0:00:03.7]}
34... Rxd6 {[%clk 0:00:11.5]} 35. Rxf7+ {[%clk 0:00:04.3]} 35... Kh6 {[%clk
0:00:12]} 36. Kh2 {[%clk 0:00:04.7]} 36... Rb8 {[%clk 0:00:03.2]} 37. Rf2 {[%clk
0:00:05]} 37... Rd4 {[%clk 0:00:02.8]} 38. Re7 {[%clk 0:00:04.9]} 38... Rdb4
{[%clk 0:00:02.4]} 39. Rff7 {[%clk 0:00:05]} 1-0

[Event "Early-Titled-Tuesday-Blitz-October-24-2023"]
[Site "Chess.com"]
[Date "2023.10.24"]
[Round "5"]
[White "YouJustFoundYourGodfather"]
[Black "Blitzstream"]
[Result "0-1"]
[WhiteElo "2622"]
[BlackElo "2847"]
[TimeControl "180+1"]
[EndTime "8:55:23 PDT"]
[Termination "Blitzstream won by checkmate"]

1. f4 {[%clk 0:02:53.5]} 1... e5 {[%clk 0:02:59.6]} 2. d3 {[%clk 0:02:52.4]}
2... d5 {[%clk 0:02:57.3]} 3. fxe5 {[%clk 0:02:51.7]} 3... Nc6 {[%clk
0:02:57.6]} 4. Nf3 {[%clk 0:02:51.7]} 4... Bg4 {[%clk 0:02:56.6]} 5. Bf4 {[%clk
0:02:51.6]} 5... Nge7 {[%clk 0:02:52.7]} 6. Nbd2 {[%clk 0:02:51.6]} 6... Ng6
{[%clk 0:02:52.7]} 7. Bg3 {[%clk 0:02:52.2]} 7... d4 {[%clk 0:02:37.2]} 8. c3
{[%clk 0:02:50.9]} 8... Bc5 {[%clk 0:02:29.8]} 9. Qa4 {[%clk 0:02:46.4]} 9...
O-O {[%clk 0:02:19.1]} 10. O-O-O {[%clk 0:02:20]} 10... a6 {[%clk 0:01:51.8]}
11. Qc4 {[%clk 0:02:15.9]} 11... Ba7 {[%clk 0:01:34.9]} 12. cxd4 {[%clk
0:02:10]} 12... Be6 {[%clk 0:01:26.6]} 13. Qc3 {[%clk 0:02:02.8]} 13... Nxd4
{[%clk 0:01:25.9]} 14. Nc4 {[%clk 0:01:49.6]} 14... b5 {[%clk 0:01:11.4]} 15.
Na5 {[%clk 0:01:49.2]} 15... c5 {[%clk 0:00:51.6]} 16. Nb3 {[%clk 0:01:38.5]}
16... b4 {[%clk 0:00:42.8]} 17. Qd2 {[%clk 0:01:33.1]} 17... Bxb3 {[%clk
0:00:39.2]} 18. Nxd4 {[%clk 0:01:33.1]} 18... Bxd1 {[%clk 0:00:39.4]} 19. Nc6
{[%clk 0:01:23.8]} 19... Qd7 {[%clk 0:00:33.4]} 20. Nxa7 {[%clk 0:01:23.2]}
20... Ba4 {[%clk 0:00:33]} 21. h4 {[%clk 0:01:09.1]} 21... h5 {[%clk 0:00:30.3]}
22. b3 {[%clk 0:00:57.9]} 22... Rxa7 {[%clk 0:00:19.1]} 23. bxa4 {[%clk
0:00:54.4]} 23... Qxa4 {[%clk 0:00:19.7]} 24. e3 {[%clk 0:00:39.1]} 24... Rb7
{[%clk 0:00:19]} 25. Be2 {[%clk 0:00:39.1]} 25... b3 {[%clk 0:00:19.5]} 26. a3
{[%clk 0:00:28]} 26... b2+ {[%clk 0:00:18.6]} 27. Kb1 {[%clk 0:00:27.1]} 27...
Qxa3 {[%clk 0:00:18.5]} 28. Kc2 {[%clk 0:00:16.4]} 28... b1=Q+ {[%clk
0:00:17.2]} 29. Rxb1 {[%clk 0:00:16]} 29... Qa2+ {[%clk 0:00:17.6]} 30. Kc3
{[%clk 0:00:16.6]} 30... Qxd2+ {[%clk 0:00:17.8]} 31. Kxd2 {[%clk 0:00:17.5]}
31... Rxb1 {[%clk 0:00:18.1]} 32. Bf3 {[%clk 0:00:16.8]} 32... a5 {[%clk
0:00:16.7]} 33. Kc2 {[%clk 0:00:12.9]} 33... Rfb8 {[%clk 0:00:16.8]} 34. Bc6
{[%clk 0:00:13.2]} 34... R1b2+ {[%clk 0:00:14.8]} 35. Kc3 {[%clk 0:00:11.8]}
35... R2b4 {[%clk 0:00:14.7]} 36. d4 {[%clk 0:00:10]} 36... Ne7 {[%clk
0:00:14.6]} 37. Bf3 {[%clk 0:00:06.9]} 37... cxd4+ {[%clk 0:00:15.1]} 38. exd4
{[%clk 0:00:06.9]} 38... a4 {[%clk 0:00:15.6]} 39. d5 {[%clk 0:00:06.1]} 39...
Rb3+ {[%clk 0:00:15.9]} 40. Kd4 {[%clk 0:00:03.6]} 40... Nf5+ {[%clk 0:00:15.3]}
41. Kc5 {[%clk 0:00:03.2]} 41... Nxg3 {[%clk 0:00:16.2]} 42. d6 {[%clk 0:00:03]}
42... Rxf3 {[%clk 0:00:16.3]} 43. gxf3 {[%clk 0:00:03.1]} 43... a3 {[%clk
0:00:16.7]} 44. e6 {[%clk 0:00:03.4]} 44... fxe6 {[%clk 0:00:16.8]} 45. d7
{[%clk 0:00:03.9]} 45... a2 {[%clk 0:00:17]} 46. Kd6 {[%clk 0:00:04.8]} 46...
a1=Q {[%clk 0:00:17.3]} 47. Ke7 {[%clk 0:00:05.7]} 47... Qa3+ {[%clk 0:00:17.1]}
48. Kxe6 {[%clk 0:00:06.3]} 48... Rb6+ {[%clk 0:00:16.9]} 49. Ke5 {[%clk
0:00:06.2]} 49... Qd6# {[%clk 0:00:16.8]} 0-1

[Event "Early-Titled-Tuesday-Blitz-October-24-2023"]
[Site "Chess.com"]
[Date "2023.10.24"]
[Round "5"]
[White "vladislavkovalev"]
[Black "tetrix83"]
[Result "1-0"]
[WhiteElo "2876"]
[BlackElo "2632"]
[TimeControl "180+1"]
[EndTime "8:55:24 PDT"]
[Termination "vladislavkovalev won on time"]

1. e4 {[%clk 0:03:00.9]} 1... c5 {[%clk 0:02:51.5]} 2. Nf3 {[%clk 0:02:59.6]}
2... d6 {[%clk 0:02:49.1]} 3. Bb5+ {[%clk 0:02:58.5]} 3... Bd7 {[%clk
0:02:49.4]} 4. Bxd7+ {[%clk 0:02:59]} 4... Nxd7 {[%clk 0:02:50.2]} 5. c4 {[%clk
0:02:59.7]} 5... Ngf6 {[%clk 0:02:49.7]} 6. Nc3 {[%clk 0:02:59.3]} 6... e6
{[%clk 0:02:50.3]} 7. O-O {[%clk 0:02:56.6]} 7... Be7 {[%clk 0:02:50.8]} 8. Re1
{[%clk 0:02:56.9]} 8... O-O {[%clk 0:02:50.2]} 9. b3 {[%clk 0:02:57.4]} 9... a6
{[%clk 0:02:47.8]} 10. Bb2 {[%clk 0:02:51.8]} 10... Ne5 {[%clk 0:02:42.6]} 11.
Nxe5 {[%clk 0:02:46]} 11... dxe5 {[%clk 0:02:42.6]} 12. d3 {[%clk 0:02:46.5]}
12... Qd6 {[%clk 0:02:35.9]} 13. Qe2 {[%clk 0:02:44.7]} 13... Rad8 {[%clk
0:02:35]} 14. Red1 {[%clk 0:02:44.4]} 14... Nd7 {[%clk 0:02:34.8]} 15. a3 {[%clk
0:02:43.4]} 15... f6 {[%clk 0:02:31.6]} 16. b4 {[%clk 0:02:41.7]} 16... Qc7
{[%clk 0:02:25.2]} 17. b5 {[%clk 0:02:38.2]} 17... a5 {[%clk 0:02:24.4]} 18. Bc1
{[%clk 0:02:33.6]} 18... Rf7 {[%clk 0:02:20.8]} 19. Rb1 {[%clk 0:02:28.5]} 19...
b6 {[%clk 0:02:20.1]} 20. Rf1 {[%clk 0:02:22]} 20... g5 {[%clk 0:02:15.6]} 21.
Be3 {[%clk 0:02:15.4]} 21... Nf8 {[%clk 0:02:13.3]} 22. g3 {[%clk 0:02:13.2]}
22... Ng6 {[%clk 0:02:10.2]} 23. Rbd1 {[%clk 0:02:11.3]} 23... Bd6 {[%clk
0:02:09.8]} 24. Qh5 {[%clk 0:02:08.1]} 24... Rg7 {[%clk 0:02:08.4]} 25. Kg2
{[%clk 0:02:03.4]} 25... Kh8 {[%clk 0:02:06.8]} 26. Rh1 {[%clk 0:02:02.5]} 26...
Rdg8 {[%clk 0:01:24.8]} 27. Kf1 {[%clk 0:01:55.8]} 27... Qf7 {[%clk 0:01:05.8]}
28. Ke1 {[%clk 0:01:52.1]} 28... Ne7 {[%clk 0:01:00.8]} 29. Qxf7 {[%clk
0:01:46.4]} 29... Rxf7 {[%clk 0:01:01.7]} 30. h4 {[%clk 0:01:43.7]} 30... g4
{[%clk 0:00:58]} 31. h5 {[%clk 0:01:44.1]} 31... f5 {[%clk 0:00:54.9]} 32. exf5
{[%clk 0:01:39.6]} 32... exf5 {[%clk 0:00:54.3]} 33. Bc1 {[%clk 0:01:36.9]}
33... Re8 {[%clk 0:00:43.5]} 34. Kd2 {[%clk 0:01:35.9]} 34... Ng8 {[%clk
0:00:43.5]} 35. Nd5 {[%clk 0:01:35.1]} 35... Rb8 {[%clk 0:00:34.3]} 36. Rde1
{[%clk 0:01:33.4]} 36... Nf6 {[%clk 0:00:34.3]} 37. Ne3 {[%clk 0:01:33.2]} 37...
Nd7 {[%clk 0:00:29.5]} 38. Bb2 {[%clk 0:01:33.5]} 38... Kg8 {[%clk 0:00:28.7]}
39. Nd5 {[%clk 0:01:33.7]} 39... h6 {[%clk 0:00:28]} 40. Re2 {[%clk 0:01:32.9]}
40... Kh7 {[%clk 0:00:22.5]} 41. Rhe1 {[%clk 0:01:33.3]} 41... Rg8 {[%clk
0:00:22.2]} 42. Bxe5 {[%clk 0:01:28.2]} 42... Nxe5 {[%clk 0:00:20.5]} 43. Rxe5
{[%clk 0:01:29.1]} 43... Bxe5 {[%clk 0:00:20.9]} 44. Rxe5 {[%clk 0:01:29.6]}
44... Rg5 {[%clk 0:00:20.7]} 45. Re6 {[%clk 0:01:08.5]} 45... Rxh5 {[%clk
0:00:15.8]} 46. Nf6+ {[%clk 0:01:08.6]} 46... Kg6 {[%clk 0:00:14.3]} 47. Nxh5+
{[%clk 0:01:05.8]} 47... Kxh5 {[%clk 0:00:15.2]} 48. Rxb6 {[%clk 0:01:06.3]}
48... Kg5 {[%clk 0:00:12.1]} 49. Rc6 {[%clk 0:01:05.8]} 49... h5 {[%clk
0:00:12.7]} 50. Rxc5 {[%clk 0:01:06.4]} 50... h4 {[%clk 0:00:13.2]} 51. gxh4+
{[%clk 0:01:07.3]} 51... Kxh4 {[%clk 0:00:13.7]} 52. b6 {[%clk 0:01:07.8]} 52...
f4 {[%clk 0:00:09.5]} 53. Rc7 {[%clk 0:01:07.8]} 53... Rf8 {[%clk 0:00:09.2]}
54. Rh7+ {[%clk 0:01:06.7]} 54... Kg5 {[%clk 0:00:09]} 55. Rg7+ {[%clk
0:01:06.6]} 55... Kh4 {[%clk 0:00:09.2]} 56. c5 {[%clk 0:01:07.2]} 56... Kh3
{[%clk 0:00:08.3]} 57. c6 {[%clk 0:01:06.9]} 57... g3 {[%clk 0:00:08.8]} 58.
fxg3 {[%clk 0:01:07.3]} 58... f3 {[%clk 0:00:09.3]} 59. Re7 {[%clk 0:00:49.1]}
59... f2 {[%clk 0:00:09]} 60. Re1 {[%clk 0:00:49.8]} 1-0

[Event "Early-Titled-Tuesday-Blitz-October-24-2023"]
[Site "Chess.com"]
[Date "2023.10.24"]
[Round "5"]
[White "Chessbard1972"]
[Black "Lady_Nika"]
[Result "1-0"]
[WhiteElo "2357"]
[BlackElo "2478"]
[TimeControl "180+1"]
[EndTime "8:55:25 PDT"]
[Termination "Chessbard1972 won by resignation"]

1. e4 {[%clk 0:02:59.9]} 1... c5 {[%clk 0:02:58.6]} 2. Nc3 {[%clk 0:02:57.5]}
2... e6 {[%clk 0:02:58.8]} 3. f4 {[%clk 0:02:57]} 3... a6 {[%clk 0:02:58.9]} 4.
a4 {[%clk 0:02:56.4]} 4... Qc7 {[%clk 0:02:59.2]} 5. Nf3 {[%clk 0:02:55]} 5...
Nc6 {[%clk 0:02:59.5]} 6. Bc4 {[%clk 0:02:54.6]} 6... Qxf4 {[%clk 0:02:40]} 7.
d4 {[%clk 0:02:49.7]} 7... Qg4 {[%clk 0:02:39.4]} 8. d5 {[%clk 0:02:44.4]} 8...
Nd4 {[%clk 0:02:22.1]} 9. O-O {[%clk 0:02:31.9]} 9... Nf6 {[%clk 0:01:56.9]} 10.
h3 {[%clk 0:02:25.1]} 10... Qh5 {[%clk 0:01:55.5]} 11. Be3 {[%clk 0:02:11.5]}
11... Nxf3+ {[%clk 0:01:44.7]} 12. Rxf3 {[%clk 0:02:09.9]} 12... Be7 {[%clk
0:01:44]} 13. d6 {[%clk 0:02:04.3]} 13... Bd8 {[%clk 0:01:42.4]} 14. Qd2 {[%clk
0:01:49.4]} 14... b6 {[%clk 0:01:40.2]} 15. Raf1 {[%clk 0:01:45.8]} 15... Bb7
{[%clk 0:01:38.2]} 16. Qd3 {[%clk 0:01:34.9]} 16... O-O {[%clk 0:01:32.7]} 17.
Rg3 {[%clk 0:01:31]} 17... Qe5 {[%clk 0:01:28.3]} 18. Rg5 {[%clk 0:01:25.8]}
18... Qxg5 {[%clk 0:00:30.1]} 19. Bxg5 {[%clk 0:01:23.4]} 19... Nxe4 {[%clk
0:00:29.6]} 20. Bxd8 {[%clk 0:01:20.6]} 20... Nxc3 {[%clk 0:00:28.9]} 21. Be7
{[%clk 0:01:15.6]} 21... Ne4 {[%clk 0:00:28.2]} 22. Bxf8 {[%clk 0:01:14.7]}
22... Rxf8 {[%clk 0:00:27.9]} 23. Qd1 {[%clk 0:01:11.6]} 23... f5 {[%clk
0:00:26.8]} 24. Qd3 {[%clk 0:01:07.3]} 24... Rf6 {[%clk 0:00:25.5]} 25. Bxa6
{[%clk 0:01:01.3]} 25... Bd5 {[%clk 0:00:23.5]} 26. Bc4 {[%clk 0:00:55.9]} 26...
Bb7 {[%clk 0:00:22.3]} 27. Ra1 {[%clk 0:00:49.4]} 27... Rg6 {[%clk 0:00:20.2]}
28. Qe3 {[%clk 0:00:44.7]} 28... Nxd6 {[%clk 0:00:18.8]} 29. Bf1 {[%clk
0:00:44.3]} 29... e5 {[%clk 0:00:16.4]} 30. Qd2 {[%clk 0:00:43.1]} 30... f4
{[%clk 0:00:15.3]} 31. Kh1 {[%clk 0:00:41]} 31... f3 {[%clk 0:00:14.9]} 32. gxf3
{[%clk 0:00:40.9]} 32... Bxf3+ {[%clk 0:00:15]} 33. Kh2 {[%clk 0:00:41]} 33...
h5 {[%clk 0:00:11.5]} 34. Ra3 {[%clk 0:00:40.9]} 34... Bc6 {[%clk 0:00:11.1]}
35. Rg3 {[%clk 0:00:40.5]} 35... Rf6 {[%clk 0:00:10.8]} 36. Bg2 {[%clk
0:00:38.3]} 36... e4 {[%clk 0:00:10.4]} 37. Qg5 {[%clk 0:00:34]} 37... Ne8
{[%clk 0:00:10.6]} 38. Qxh5 {[%clk 0:00:31.9]} 38... Kf8 {[%clk 0:00:11]} 39.
Rg4 {[%clk 0:00:26.5]} 39... d5 {[%clk 0:00:09.1]} 40. a5 {[%clk 0:00:23.5]}
40... bxa5 {[%clk 0:00:08.5]} 41. Qe5 {[%clk 0:00:23.3]} 41... Kf7 {[%clk
0:00:06.7]} 42. Rg5 {[%clk 0:00:20.7]} 42... Nd6 {[%clk 0:00:05.8]} 43. b3
{[%clk 0:00:18.2]} 43... a4 {[%clk 0:00:05.8]} 44. bxa4 {[%clk 0:00:17.7]} 44...
Nc4 {[%clk 0:00:06.1]} 45. Qc7+ {[%clk 0:00:17.3]} 45... Ke6 {[%clk 0:00:06.3]}
46. Qxc6+ {[%clk 0:00:17]} 46... Kf7 {[%clk 0:00:05.9]} 47. Qxd5+ {[%clk
0:00:17.3]} 47... Kf8 {[%clk 0:00:05.6]} 48. Qxc4 {[%clk 0:00:17.5]} 1-0

[Event "Early-Titled-Tuesday-Blitz-October-24-2023"]
[Site "Chess.com"]
[Date "2023.10.24"]
[Round "5"]
[White "leejunhyeok"]
[Black "IlyaGrigorjev"]
[Result "1-0"]
[WhiteElo "2679"]
[BlackElo "2914"]
[TimeControl "180+1"]
[EndTime "8:55:26 PDT"]
[Termination "leejunhyeok won on time"]

1. d4 {[%clk 0:03:00.9]} 1... Nf6 {[%clk 0:02:59.9]} 2. c4 {[%clk 0:03:00.7]}
2... g6 {[%clk 0:02:59.9]} 3. Nc3 {[%clk 0:03:00.5]} 3... d5 {[%clk 0:03:00.1]}
4. cxd5 {[%clk 0:03:00.7]} 4... Nxd5 {[%clk 0:03:01]} 5. e4 {[%clk 0:03:01.1]}
5... Nxc3 {[%clk 0:03:01.4]} 6. bxc3 {[%clk 0:03:02]} 6... Bg7 {[%clk
0:03:02.3]} 7. Bc4 {[%clk 0:03:02.4]} 7... c5 {[%clk 0:03:02.7]} 8. Ne2 {[%clk
0:03:02.7]} 8... Nc6 {[%clk 0:03:03.3]} 9. Be3 {[%clk 0:03:03.2]} 9... O-O
{[%clk 0:03:03.7]} 10. O-O {[%clk 0:03:03.4]} 10... b6 {[%clk 0:03:04]} 11. h4
{[%clk 0:03:03.3]} 11... e6 {[%clk 0:02:54.1]} 12. h5 {[%clk 0:03:03]} 12...
cxd4 {[%clk 0:02:53.4]} 13. cxd4 {[%clk 0:03:02.9]} 13... Qh4 {[%clk 0:02:54.1]}
14. hxg6 {[%clk 0:02:50.8]} 14... hxg6 {[%clk 0:02:55]} 15. f3 {[%clk
0:02:39.5]} 15... Bb7 {[%clk 0:02:53.4]} 16. Qd2 {[%clk 0:02:37.9]} 16... Rac8
{[%clk 0:02:51.4]} 17. Rac1 {[%clk 0:02:35.1]} 17... Qh8 {[%clk 0:02:41.9]} 18.
Rfd1 {[%clk 0:02:29.6]} 18... Rfd8 {[%clk 0:02:40.9]} 19. a3 {[%clk 0:01:39.5]}
19... Bf6 {[%clk 0:02:38.3]} 20. Qb2 {[%clk 0:01:19.1]} 20... Na5 {[%clk
0:02:12.7]} 21. Ba2 {[%clk 0:01:17.9]} 21... Ba6 {[%clk 0:02:09.1]} 22. e5
{[%clk 0:01:12.1]} 22... Be7 {[%clk 0:01:58.1]} 23. Nf4 {[%clk 0:01:04.8]} 23...
Bc4 {[%clk 0:01:45]} 24. a4 {[%clk 0:00:20.4]} 24... Bg5 {[%clk 0:01:39]} 25.
Qf2 {[%clk 0:00:14.7]} 25... Bxa2 {[%clk 0:01:33.8]} 26. Qxa2 {[%clk 0:00:14.1]}
26... Qh6 {[%clk 0:01:34.5]} 27. g3 {[%clk 0:00:14.3]} 27... Kg7 {[%clk
0:01:19.5]} 28. Kg2 {[%clk 0:00:14]} 28... Rxc1 {[%clk 0:01:19.6]} 29. Rxc1
{[%clk 0:00:12.1]} 29... Bxf4 {[%clk 0:00:49.2]} 30. Bxf4 {[%clk 0:00:12.1]}
30... Qh5 {[%clk 0:00:48.4]} 31. Rh1 {[%clk 0:00:11.3]} 31... Qf5 {[%clk
0:00:48.3]} 32. Bh6+ {[%clk 0:00:11.1]} 32... Kg8 {[%clk 0:00:48.8]} 33. g4
{[%clk 0:00:11.5]} 33... Qd3 {[%clk 0:00:31]} 34. Bg5 {[%clk 0:00:11.5]} 34...
Rxd4 {[%clk 0:00:13.9]} 35. Bf6 {[%clk 0:00:09.2]} 35... Rxg4+ {[%clk
0:00:14.6]} 36. fxg4 {[%clk 0:00:09.1]} 36... Qe4+ {[%clk 0:00:15.3]} 37. Kg1
{[%clk 0:00:08.8]} 37... Qxg4+ {[%clk 0:00:06.4]} 38. Qg2 {[%clk 0:00:08.8]}
38... Qd1+ {[%clk 0:00:07.1]} 39. Kh2 {[%clk 0:00:07.7]} 39... Qh5+ {[%clk
0:00:06.7]} 40. Kg3 {[%clk 0:00:06.7]} 1-0